Cogmind - Beta 11.1 *** ADVENTURER MODE // 2022.06.22 @ 08:34:16 Player: sxnwlfkk Result: Destroyed by as-35915 with Assembled Rifle Performance ------------- Evolutions (1) 500 Regions Visited (3) 600 Robots Destroyed (33) 165 Value Destroyed (873) 873 Prototype IDs (0) 0 Alien Tech Used (0) 0 Bonus (0) 0 TOTAL SCORE: 2138 Bonus ------- None Cogmind --------- Core Integrity 0/400 Matter 219/300 Energy 59/100 System Corruption 0% Temperature Hot (271) Movement Core (150) Ox2 Location -9/Mines Parts ------- > --- POWER (1) -------- (None) > --- PROPULSION (4) --- (None) > --- UTILITY (2) ------ Small Storage Unit Visual Processing Unit > --- WEAPON (2) ------- Field Laser > --- INVENTORY (8) ---- Light Ion Engine Improved Ion Engine Huge Storage Unit Medium Matter Pod (100) Sensor Array Improved Targeting Computer Peak State ------------ > --- POWER ------------ Improved Ion Engine > --- PROPULSION ------- Aluminum Leg Aluminum Leg Aluminum Leg Aluminum Leg > --- UTILITY ---------- Small Storage Unit Visual Processing Unit > --- WEAPON ----------- Autogun Assault Cannon > --- INVENTORY -------- Light Ion Engine Improved Ion Engine Huge Storage Unit Medium Matter Pod Sensor Array Field Laser Light Assault Rifle [Rating: 15] Favorites ----------- Power Light Ion Engine Engine Light Ion Engine Propulsion Aluminum Leg Leg Aluminum Leg Utility Small Storage Unit Storage Small Storage Unit Processor Visual Processing Unit Protection Light Armor Plating Weapon Light Assault Rifle Energy Gun Field Laser Ballistic Gun Light Assault Rifle Ballistic Cannon Assault Cannon Build | -11 -10 -9 -9 ------- Run | Scr Mat Mat Min Slots Evolved 2 | . . 2 . Power . | . . . . Propulsion 2 | . . 2 . Utility . | . . . . Weapon . | . . . . Parts Attached 24 | 7 4 10 3 Power 4 | 1 1 1 1 Engine 4 | 1 1 1 1 Core . | . . . . Reactor . | . . . . Propulsion 6 | 2 . 4 . Treads . | . . . . Leg 6 | 2 . 4 . Wheel . | . . . . Hover . | . . . . Flight . | . . . . Utility 6 | 1 3 2 . Device . | . . . . Storage 3 | 1 2 . . Processor 1 | . . 1 . Hackware . | . . . . Protection 2 | . 1 1 . Artifact . | . . . . Weapon 8 | 3 . 3 2 Energy Gun 3 | 1 . 1 1 Energy Cannon . | . . . . Ballistic Gun 4 | 2 . 1 1 Ballistic Cannon 1 | . . 1 . Launcher . | . . . . Special Weapon . | . . . . Impact Weapon . | . . . . Slashing Weapon . | . . . . Piercing Weapon . | . . . . Special Melee Weapon . | . . . . Unidentified Prototypes . | . . . . Parts Lost 9 | . 1 1 7 Power 1 | . . . 1 Propulsion 3 | . . . 3 Utility 2 | . 1 1 . Weapon 3 | . . . 3 Highest Loss Streak 7 | . 1 1 7 To Critical Strikes . | . . . . Average Slot Usage (%) 96 | . 96 97 77 Engine 12 | . 14 11 11 Leg 36 | . 28 43 22 Storage 12 | . 14 11 11 Processor 1 | . . 2 11 Protection 8 | . 10 6 . Ballistic Gun 19 | . 28 13 11 Ballistic Cannon 4 | . . 7 11 Naked Turns . | . . . . Heaviest Build 23 | 11 14 23 20 Greatest Support 40 | 20 20 40 40 Greatest Overweight (x) 1 | 1 . . . Average Overweight (x) . | . . . . Largest Inventory Capacity 25 | 8 25 8 8 Average Capacity 7 | 6 8 8 8 Most Carried 8 | 2 8 8 8 Average Carried 6 | 1 5 7 7 Final Capacity 8 | 8 8 8 8 Final Carried 8 | 2 7 8 6 Class Distribution -------------------- 71% | Mutant 28% | Scavenger-Mutant Dominant Class ---------------- Mutant | -10/Materials Mutant | -9/Materials Scavenger-Mutant | -9/Mines Resources | -11 -10 -9 -9 ----------- Run | Scr Mat Mat Min Matter Collected 1048 | 227 374 447 . Remotely . | . . . . Salvage Created 1036 | . 464 531 41 Parts 60 | . 26 34 . Haulers Intercepted . | . . . . Recyclers Shooed 3 | . 1 2 . Parts Field Recycled . | . . . . Retrieved Matter . | . . . . Parts Self-Destructed . | . . . . Prevented . | . . . . Kills | -11 -10 -9 -9 ------- Run | Scr Mat Mat Min Combat Hostiles Destroyed 28 | . 9 16 3 Guns 19 | . 9 8 2 Cannons 8 | . . 7 1 Classes Destroyed 7 | . 5 1 1 Worker 2 | . 2 . . Recycler 1 | . 1 . . Watcher 5 | . 3 2 . Swarmer 7 | . 3 4 . Grunt 14 | . 6 8 . Sentry 4 | . . 4 . Assembled 3 | . . . 3 Best Kill Streak 5 | . 5 2 3 Combat Bots Only 3 | . 3 2 3 Max Kills in Single Turn 2 | . 2 1 1 Gunslinging 1 | . 1 . . Exploded . | . . . . Melee . | . . . . Uniques/NPCs Destroyed . | . . . . Combat | -11 -10 -9 -9 -------- Run | Scr Mat Mat Min Damage Taken 1860 | . 369 528 963 Core 457 | . 50 83 324 Absorbed by Shields . | . . . . Core Remaining (%) 90 | 100 80 . . Volleys Fired 105 | . 49 51 5 Largest 2 | . 2 2 2 Hottest 86 | . 40 86 83 Shots Fired 210 | . 98 102 10 Gun 173 | . 98 69 6 Cannon 37 | . . 33 4 Launcher . | . . . . Special . | . . . . Kinetic 206 | . 98 99 9 Thermal 4 | . . 3 1 Explosive . | . . . . Electromagnetic . | . . . . Robot Hit Streak 25 | . 18 25 6 Robot Miss Streak 2 | . 1 2 2 Penetration Max . | . . . . Secondary Targets 1 | . 1 . . Max Gunslinging Chain 1 | . 1 . . Shots Hit Robots 167 | . 75 85 7 Core Hits 58 | . 27 27 4 Critical Kills . | . . . . Critical Parts Destroyed 1 | . 1 . . Critical Strikes 3 | . 1 2 . Burn 2 | . . 2 . Destroy 1 | . 1 . . Melee Attacks . | . . . . Impact . | . . . . Slashing . | . . . . Piercing . | . . . . Sneak Attacks . | . . . . Combat Hostiles . | . . . . Follow-up Attacks . | . . . . Damage Inflicted 2387 | . 803 1450 134 Guns 1708 | . 802 837 69 Cannons 675 | . . 610 65 Explosions . | . . . . Melee . | . . . . Ramming 4 | . 1 3 . Kinetic 2314 | . 802 1396 116 Thermal 69 | . . 51 18 Explosive . | . . . . Electromagnetic . | . . . . Impact . | . . . . Slashing . | . . . . Piercing . | . . . . Highest Corruption . | . . . . Average Corruption . | . . . . Corruption Purged . | . . . . Corruption Blocked . | . . . . Overload Shots . | . . . . Overflow Damage 36 | . . 18 18 Projectiles 36 | . . 18 18 Explosions . | . . . . Melee . | . . . . Knockbacks 12 | . . 9 3 Impact . | . . . . Kinetic 9 | . . 7 2 Secondary 3 | . . 2 1 Self-Inflicted Damage . | . . . . Shots . | . . . . Rammed . | . . . . Targets Rammed 2 | . 1 1 . Kicked 2 | . 1 1 . Crushed . | . . . . Highest Temperature 271 | . 25 219 271 Average Temperature 46 | . 8 66 110 Received Heat Transfer 876 | . 231 285 360 Siege Activations . | . . . . Robots Corrupted . | . . . . Combat Hostiles . | . . . . Parts Fried . | . . . . Impact Corruptions . | . . . . Robots Melted 1 | . . 1 . Combat Hostiles 1 | . . 1 . Parts Melted 2 | . . 2 . Heat Transferred 296 | . . 259 37 Parts Sabotaged . | . . . . Parts Stolen . | . . . . Parts Stripped . | . . . . Power Chain Reactions . | . . . . Missiles Intercepted . | . . . . Alert | -11 -10 -9 -9 ------- Run | Scr Mat Mat Min Peak Influence 365 | . 239 365 83 Initial 85 | . . 85 80 Average 166 | . 69 250 59 Maximum Alert Level 1 | . 1 1 . Low Security (%) 55 | 100 94 24 100 Level 1 44 | . 5 75 . Level 2 . | . . . . Level 3 . | . . . . Level 4 . | . . . . Level 5 . | . . . . High Security . | . . . . Max Security . | . . . . Squads Dispatched 1 | . 1 . . Investigation 1 | . 1 . . Extermination . | . . . . Reinforcement . | . . . . Assault . | . . . . Garrison . | . . . . Intercept . | . . . . Searches Triggered . | . . . . Construction Impeded . | . . . . Haulers Reinforced . | . . . . Active Scanning Responses . | . . . . Cargo Convoy Interrupts . | . . . . Stealth | -11 -10 -9 -9 --------- Run | Scr Mat Mat Min Distress Signals 4 | . 2 2 . Communications Jammed . | . . . . Distress Signals . | . . . . Times Spotted 62 | . 16 26 20 Peak Tracking Total 20 | . 5 4 20 Tactical Retreats 5 | . 2 2 1 Traps | -11 -10 -9 -9 ------- Run | Scr Mat Mat Min Traps Triggered 1 | . 1 . . Indirectly . | . . . . Trap Hack Attempts . | . . . . Triggered . | . . . . Disarmed . | . . . . Reprogrammed . | . . . . Reused . | . . . . Traps Extracted . | . . . . Installed . | . . . . Triggered . | . . . . Machines | -11 -10 -9 -9 ---------- Run | Scr Mat Mat Min Machines Disabled 2 | . . 2 . Max in Single Turn 1 | . . 1 . Machines Sabotaged . | . . . . Garrisons Compromised . | . . . . Overloaded Fab Kills . | . . . . Hacking | -11 -10 -9 -9 --------- Run | Scr Mat Mat Min Machines Accessed 1 | . 1 . . Terminals 1 | . 1 . . Fabricators . | . . . . Repair Stations . | . . . . Recycling Units . | . . . . Scanalyzers . | . . . . Garrison Access . | . . . . Total Hacks 1 | . 1 . . Successful 1 | . 1 . . Failed . | . . . . Catastrophic . | . . . . Database Lockouts . | . . . . Manual . | . . . . Terminals 1 | . 1 . . Fabricators . | . . . . Repair Stations . | . . . . Recycling Units . | . . . . Scanalyzers . | . . . . Garrison Access . | . . . . Terminal Hacks 1 | . 1 . . Maintenance Status 1 | . 1 . . Fabricator Hacks . | . . . . Repair Station Hacks . | . . . . Recycling Unit Hacks . | . . . . Scanalyzer . | . . . . Garrison Access Hacks . | . . . . Unauthorized Hacks . | . . . . Terminals . | . . . . Fabricators . | . . . . Repair Stations . | . . . . Recycling Units . | . . . . Scanalyzers . | . . . . Garrison Access . | . . . . Data Cores Recovered . | . . . . Used . | . . . . Hacking Detections 1 | . 1 . . Full Trace Events . | . . . . Feedback Events . | . . . . Feedback Blocked . | . . . . Robot Schematics Acquired . | . . . . Robots Built . | . . . . Authchips . | . . . . Time . | . . . . Total Robot Build Rating . | . . . . Part Schematics Acquired . | . . . . Parts Built . | . . . . Authchips . | . . . . Time . | . . . . Total Part Build Rating . | . . . . Parts Repaired . | . . . . Time . | . . . . Parts Recycled . | . . . . Recycled Matter . | . . . . Retrieved Matter . | . . . . Retrieved Components . | . . . . Parts Scanalyzed . | . . . . Part Schematics Acquired . | . . . . Parts Damaged . | . . . . Bothacking | -11 -10 -9 -9 ------------ Run | Scr Mat Mat Min Used RIF Installer . | . . . . Robots Hacked . | . . . . Non-combat . | . . . . Combat . | . . . . Robot Hacks Applied . | . . . . Relay Couplers Released . | . . . . Fabnet Peak Effective % . | . . . . Robots Rewired . | . . . . Allies Hacked . | . . . . Hacks Repelled . | . . . . Allies | -11 -10 -9 -9 -------- Run | Scr Mat Mat Min Total Allies . | . . . . Largest Group . | . . . . Highest-Rated Group . | . . . . Highest-Rated Ally . | . . . . Total Orders . | . . . . Ally Attacks . | . . . . Total Damage . | . . . . Kills . | . . . . Allies Corrupted . | . . . . Allies Melted . | . . . . Intel | -11 -10 -9 -9 ------- Run | Scr Mat Mat Min Robot Analysis Total . | . . . . Derelict Logs Recovered . | . . . . Drone Launches . | . . . . Drone Recoveries . | . . . . Exploration | -11 -10 -9 -9 ------------- Run | Scr Mat Mat Min Turns Passed 1715 | 71 679 946 19 Spaces Moved 1048 | 55 400 591 2 Core 20 | 20 . . . Treads . | . . . . Legs 1028 | 35 400 591 2 Wheels . | . . . . Hover . | . . . . Flight . | . . . . Fastest Speed 50 | 50 120 120 120 Average Speed 119 | 108 120 120 120 Slowest Speed 120 | 120 120 120 120 Overloaded Moves . | . . . . Propulsion Burnouts . | . . . . Robots Hopped . | . . . . Cave-ins Triggered . | . . . . Exploration Rate (%) 32 | 4 63 55 7 Regions Visited 3 Branch Regions 1 Pre-discovered Areas . | . . . . Known Exits Taken . | . . . . Unknown Exits Taken 3 | 1 1 1 . Scrap Searched . | . . . . Spaces Dug . | . . . . Terrain Destroyed 5 | . . 4 1 Melee . | . . . . Projectile 5 | . . 4 1 AOE . | . . . . Terrain Rammed . | . . . . Walls Destroyed . | . . . . Machines Disabled . | . . . . Actions | -11 -10 -9 -9 --------- Run | Scr Mat Mat Min Total 1320 | 63 510 737 10 Wait 113 | . 44 69 . Move 1045 | 54 399 590 2 Hop . | . . . . Pick Up 19 | 2 9 8 . Fast Attach 11 | 6 1 4 . Attach 5 | . . 3 2 Detach 1 | . . 1 . Swap 8 | 1 3 3 1 Drop 11 | . 4 7 . Fire 105 | . 49 51 5 Melee . | . . . . Ram . | . . . . Kick 2 | . 1 1 . Crush . | . . . . Escape Stasis . | . . . . Rewire . | . . . . Trap . | . . . . Miscellaneous . | . . . . Route ------- -11/Scrapyard -10/Materials (discovered 3 exits: [*Mat x2] / [*Min]) -9/Materials (discovered 2 exits: [*Mat] / [*Min]) -9/Mines History --------- Turn | Location | Event 19 | -11/Scrapyard | Discovered new exit (range 16) 72 | -11/Scrapyard | Entered Materials 155 | -10/Materials | Discovered new exit (range 7) 303 | -10/Materials | Build established: Mutant 395 | -10/Materials | Discovered new exit (range 12) 672 | -10/Materials | Discovered new exit (range 16) 751 | -10/Materials | Entered another Materials area 751 | -9/Materials | Evolved 2 slots: Propulsion x2 1043 | -9/Materials | Discovered new exit (range 16) 1530 | -9/Materials | Build established: Scavenger-Mutant 1689 | -9/Materials | Discovered new exit (range 7) 1697 | -9/Materials | Entered Mines 1698 | -9/Mines | Assembled infested the area 1710 | -9/Mines | Core integrity fell below 50% 1715 | -9/Mines | Core integrity fell below 20% 1716 | -9/Mines | Destroyed by as-35915 with Assembled Rifle Last Messages --------------- GOAL=ESCAPE Something is scanning the area. 01698_ ALERT: Infestation in the mines, dispatching Demolisher response squad. [Achievement: Hunted] 01700_ Knocked back. 01701_ as-13403 knocked back. 01705_ as-13403 destroyed. 01705_ Destroyed Asb. Hover Unit. 01705_ as-81110 knocked back. 01706_ Aluminum Leg destroyed. 01708_ Aluminum Leg severed. 01710_ as-91574 destroyed. 01710_ Assault Cannon destroyed. 01711_ Autogun destroyed. 01712_ Imp. Ion Engine destroyed. 01712_ Critical hit (Burn: +80). 01715_ as-50889 destroyed. 01715_ Critical hit (Burn: +80). 01716_ Lgt. Assault Rifle destroyed. Map ----- +----------------------------------------------------+ | | | | | | | | | | | | | | | | | | | | | ???????????????????????????????? | | ???????????????????????????????? | | ???????????????????????????????? | | ???????????????????????????????? | | ???????????????????????????????? | | ???????????????????????????????? | | ???????????????????????????????? | | ???????????????????????????????? | | ???????????????????????????????? | | ???????????????????????????????? | | ?????????????????###++###??????? | | ?????????????????# $#??????? | | ????????????????## a######?? | | ???????# # #; a #?? | | ???????# < aaaa%aa #?? | | ??????# a%@ #?? | | ??????????????#### aa aa #?? | | ?????????????????# a #?? | | ?????????????????# #?? | | ?????????????????# #?? | | ?????????????????# #?? | | ?????????????????# #?? | | ?????????????????# #?? | | ?????????????????#############?? | | ???????????????????????????????? | | ???????????????????????????????? | | ???????????????????????????????? | | ???????????????????????????????? | | ???????????????????????????????? | | ???????????????????????????????? | | ???????????????????????????????? | | ???????????????????????????????? | | ???????????????????????????????? | | ???????????????????????????????? | | ???????????????????????????????? | | ???????????????????????????????? | | ???????????????????????????????? | | ???????????????????????????????? | | ???????????????????????????????? | | ???????????????????????????????? | +----------------------------------------------------+ Best States ------------- Heat Dissipation 28 Energy Generation 12 Energy Capacity 265 Matter Stores 300 Matter Capacity 300 Sight Range 18 Terrain Scan Density 10 Armor Coverage 150 Resistance: KI 20 Resistance: TH 20 Resistance: EX 20 Resistance: EM 20 Resistance: I 20 Resistance: S 20 Resistance: P 20 Evasion (%) 55 Offensive Hacking 10 Item Schematics ----------------- None Robot Schematics ------------------ None Fabricated ------------ Nothing Alien Tech Used ----------------- None Achievements -------------- Hunted It's Just You Challenges ------------ None Game ------ Seed StasisParticleMagmablaster Manual? 0 Play Time 00:31:05 Cumulative 3.8 hours Start 2022.06.22 @ 07:34:33 End 2022.06.22 @ 08:34:16 Sessions 1 Manual Loads 0 Difficulty Adventurer Special Mode None Game No. 7 Rogue 4 Adventurer 3 Explorer 0 Win Type - Total 0 Types 0/0/0/0/0/0/0/0/0 Lore% 2 Gallery% 8 Achievement% 7 Wizard Run 0 Options --------- ASCII 0 Keyboard 1 Movement Vi Keybinds 0 Fullscreen 2 Font 18/SmallcapsGlow Map View 76x50 Tactical HUD 1 Map Filters NONE Filters NONE Steam 1 RUN: 8f5467dc-8bad-4abc-b052-689bea2ebfe7